{"text_format":"1","workbook":"xlsx","n_sheets":3,"sheets":["SP Mechatronika","plan ECTS","SP analiza"],"not_rendered":{"charts":0,"images":3,"macros":1,"external_links":0,"defined_names":1,"comments":1,"pivot_tables":0},"unopened":[],"bounds":{"document_bytes":16777216,"sheet_cells":100000,"rows_first":2000,"rows_last":500,"rows_between":2000,"halvings":0,"cell_chars":16384,"cell_head_chars":4096},"cells_cut":0,"cells_raw":0,"read":"whole","date_system":"1900"}

{"sheet":"SP Mechatronika","index":0,"n_rows":256,"n_cols":41,"rows_kept":256,"cut":false,"hidden":false,"merged":[[127,23,127,26],[61,3,61,5],[93,0,93,2],[99,0,99,2],[96,0,96,2],[98,0,98,2],[168,1,168,2],[169,1,169,2],[170,1,170,2],[120,1,120,2],[122,1,122,2],[165,3,165,4],[165,7,165,10],[165,11,165,38],[163,32,164,32],[163,33,164,33],[162,3,164,3],[162,4,164,4],[162,5,164,5],[162,7,164,7],[163,13,164,13],[163,14,164,14],[162,8,164,8],[151,27,151,38],[171,1,171,2],[113,1,113,2],[172,1,173,2],[114,1,114,2],[116,1,116,2],[166,1,166,2],[128,1,128,2],[165,1,165,2],[156,0,156,2],[152,0,152,2],[151,0,151,2],[154,0,154,2],[155,0,155,2],[123,1,123,2],[124,1,124,2],[126,1,126,2],[121,1,121,2],[20,1,20,2],[22,1,22,2],[24,1,24,2],[129,1,130,2],[131,0,138,2],[67,1,67,2],[68,1,68,2],[100,0,100,2],[94,0,94,2],[102,0,106,0],[102,1,106,2],[25,1,26,2],[71,1,72,2],[66,1,66,2],[108,1,108,2],[109,1,109,2],[111,1,111,2],[112,1,112,2],[51,0,51,2],[65,1,65,2],[70,1,70,2],[62,1,62,2],[63,1,63,2],[61,1,61,2],[181,31,181,34],[181,35,181,38],[181,6,181,10],[181,11,181,14],[181,15,181,18],[181,19,181,22],[193,27,193,38],[69,1,69,2],[110,1,110,2],[115,1,115,2],[167,1,167,2],[181,23,181,26],[181,27,181,30],[162,9,164,9],[131,10,133,10],[104,10,106,10],[79,6,79,10],[104,8,106,8],[134,9,135,9],[129,10,130,10],[134,6,135,6],[134,7,135,7],[134,8,135,8],[71,10,72,10],[178,35,178,38],[179,27,179,30],[179,31,179,34],[179,35,179,38],[179,19,179,22],[179,23,179,26],[180,11,180,14],[180,15,180,18],[180,27,180,30],[180,31,180,34],[180,35,180,38],[180,19,180,22],[180,23,180,26],[174,35,174,38],[175,15,176,15],[175,16,176,16],[175,17,176,17],[175,18,176,18],[178,15,178,18],[178,19,178,22],[178,23,178,26],[177,9,178,9],[177,10,178,10],[175,37,176,37],[175,35,176,35],[175,36,176,36],[174,10,176,10],[174,11,174,14],[175,38,176,38],[175,25,176,25],[175,26,176,26],[175,27,176,27],[175,28,176,28],[175,33,176,33],[175,34,176,34],[175,29,176,29],[175,30,176,30],[175,32,176,32],[174,27,174,30],[177,3,178,3],[177,4,178,4],[177,5,178,5],[177,6,178,6],[175,21,176,21],[174,15,174,18],[174,19,174,22],[175,11,176,11],[175,12,176,12],[174,31,174,34],[178,27,178,30],[178,31,178,34],[180,6,180,10],[173,23,173,26],[174,6,176,6],[174,7,176,7],[175,13,176,13],[175,14,176,14],[175,23,176,23],[175,24,176,24],[175,22,176,22],[177,7,178,7],[177,8,178,8],[178,11,178,14],[179,6,179,10],[175,19,176,19],[175,20,176,20],[179,11,179,14],[179,15,179,18],[173,15,173,18],[173,11,173,14],[174,23,174,26],[174,8,176,8],[174,9,176,9],[173,27,173,30],[172,3,173,3],[172,4,173,4],[172,5,173,5],[172,6,173,6],[172,7,173,7],[172,8,173,8],[172,9,173,9],[172,10,173,10],[174,0,181,2],[174,3,176,3],[174,4,176,4],[174,5,176,5],[179,3,181,5],[175,31,176,31],[173,35,173,38],[163,27,164,27],[163,20,164,20],[163,21,164,21],[163,22,164,22],[163,23,164,23],[163,34,164,34],[163,35,164,35],[163,25,164,25],[173,31,173,34],[163,26,164,26],[163,28,164,28],[163,29,164,29],[163,30,164,30],[173,19,173,22],[163,36,164,36],[163,37,164,37],[163,38,164,38],[152,27,152,38],[151,3,152,26],[156,27,156,38],[154,27,154,38],[150,27,150,38],[137,15,137,18],[138,19,138,22],[138,35,138,38],[138,6,138,10],[137,31,137,34],[138,11,138,14],[137,35,137,38],[155,27,155,38],[137,27,137,30],[162,11,162,38],[163,11,164,11],[163,31,164,31],[163,16,164,16],[162,10,164,10],[163,17,164,17],[163,18,164,18],[163,19,164,19],[157,0,157,2],[158,0,158,2],[161,27,161,30],[161,7,161,10],[161,11,161,14],[161,15,161,18],[161,19,161,22],[161,23,161,26],[157,27,157,38],[161,31,161,34],[158,27,158,38],[160,0,164,0],[160,1,164,2],[160,3,161,5],[161,35,161,38],[163,12,164,12],[160,6,160,10],[160,11,160,38],[161,6,164,6],[163,15,164,15],[163,24,164,24],[103,35,103,38],[93,3,94,26],[77,11,77,14],[76,8,77,8],[76,3,77,3],[77,35,77,38],[78,23,78,26],[78,27,78,30],[131,7,133,7],[131,8,133,8],[129,3,130,3],[103,6,106,6],[103,7,103,10],[76,9,77,9],[104,4,106,4],[102,3,103,5],[104,5,106,5],[129,6,130,6],[77,23,77,26],[131,3,133,3],[136,3,138,5],[131,5,133,5],[131,4,133,4],[134,5,135,5],[77,15,77,18],[73,6,75,6],[74,19,75,19],[76,5,77,5],[73,5,75,5],[73,4,75,4],[76,4,77,4],[102,6,102,10],[103,19,103,22],[105,14,106,14],[104,3,106,3],[130,15,130,18],[129,5,130,5],[131,9,133,9],[131,11,131,14],[131,15,131,18],[131,19,131,22],[132,11,133,11],[137,6,137,10],[73,9,75,9],[77,19,77,22],[59,14,60,14],[57,6,60,6],[57,19,57,22],[74,15,75,15],[72,19,72,22],[76,10,77,10],[74,16,75,16],[74,18,75,18],[74,17,75,17],[59,18,60,18],[73,15,73,18],[59,16,60,16],[72,15,72,18],[59,15,60,15],[73,10,75,10],[71,6,72,6],[71,7,72,7],[2,0,2,2],[5,0,5,2],[3,0,3,2],[7,0,7,2],[2,3,3,26],[2,27,2,38],[6,27,6,38],[9,27,9,38],[51,27,51,38],[11,0,15,0],[11,1,15,2],[25,5,26,5],[47,27,47,38],[11,3,12,5],[11,6,11,10],[13,3,15,3],[13,4,15,4],[12,6,15,6],[5,27,5,38],[8,27,8,38],[9,0,9,2],[17,1,17,2],[18,1,18,2],[19,1,19,2],[6,0,6,2],[8,0,8,2],[12,31,12,34],[12,35,12,38],[59,26,60,26],[59,21,60,21],[59,23,60,23],[59,19,60,19],[57,23,57,26],[58,3,60,3],[58,4,60,4],[57,7,57,10],[58,7,60,7],[58,8,60,8],[58,9,60,9],[54,27,54,38],[11,11,11,38],[27,5,29,5],[32,3,34,5],[30,3,31,3],[30,4,31,4],[27,10,29,10],[27,9,29,9],[33,6,33,10],[26,35,26,38],[26,11,26,14],[26,15,26,18],[13,11,13,38],[14,11,15,11],[14,12,15,12],[28,38,29,38],[14,33,15,33],[14,34,15,34],[14,31,15,31],[27,31,27,34],[26,19,26,22],[26,27,26,30],[26,31,26,34],[27,35,27,38],[27,19,27,22],[28,18,29,18],[28,28,29,28],[28,25,29,25],[28,26,29,26],[28,36,29,36],[28,35,29,35],[28,19,29,19],[28,23,29,23],[12,7,12,10],[12,11,12,14],[12,15,12,18],[12,19,12,22],[12,23,12,26],[12,27,12,30],[14,20,15,20],[14,21,15,21],[14,22,15,22],[14,23,15,23],[14,25,15,25],[14,26,15,26],[14,27,15,27],[14,30,15,30],[16,1,16,2],[16,3,16,4],[16,7,16,10],[16,11,16,38],[14,32,15,32],[14,16,15,16],[14,17,15,17],[14,18,15,18],[14,19,15,19],[14,24,15,24],[14,36,15,36],[14,29,15,29],[14,13,15,13],[14,14,15,14],[13,7,15,7],[13,8,15,8],[13,9,15,9],[13,10,15,10],[13,5,15,5],[14,37,15,37],[14,38,15,38],[14,15,15,15],[14,35,15,35],[14,28,15,28],[28,34,29,34],[28,31,29,31],[28,32,29,32],[28,29,29,29],[28,30,29,30],[28,33,29,33],[27,8,29,8],[25,3,26,3],[25,4,26,4],[27,11,27,14],[25,8,26,8],[25,9,26,9],[25,10,26,10],[25,6,26,6],[25,7,26,7],[27,15,27,18],[27,7,29,7],[27,6,29,6],[30,10,31,10],[31,11,31,14],[30,6,31,6],[30,7,31,7],[28,12,29,12],[28,13,29,13],[28,14,29,14],[28,27,29,27],[27,23,27,26],[27,27,27,30],[31,19,31,22],[31,23,31,26],[31,27,31,30],[28,24,29,24],[28,21,29,21],[31,31,31,34],[31,35,31,38],[34,31,34,34],[27,0,34,2],[27,3,29,3],[27,4,29,4],[33,11,33,14],[33,15,33,18],[28,20,29,20],[32,11,32,14],[32,15,32,18],[34,19,34,22],[28,22,29,22],[31,15,31,18],[28,15,29,15],[28,16,29,16],[28,17,29,17],[30,5,31,5],[28,11,29,11],[30,8,31,8],[30,9,31,9],[32,35,32,38],[32,23,32,26],[32,27,32,30],[64,1,64,2],[32,31,32,34],[47,0,47,2],[33,23,33,26],[33,19,33,22],[32,19,32,22],[32,6,32,10],[59,29,60,29],[59,30,60,30],[56,11,56,38],[59,17,60,17],[57,31,57,34],[57,35,57,38],[57,27,57,30],[57,11,57,14],[59,28,60,28],[59,24,60,24],[59,25,60,25],[57,15,57,18],[59,36,60,36],[59,33,60,33],[59,31,60,31],[34,11,34,14],[52,0,52,2],[54,0,54,2],[53,0,53,2],[48,0,48,2],[50,0,50,2],[59,11,60,11],[56,0,60,0],[56,1,60,2],[56,3,57,5],[58,5,60,5],[47,3,48,26],[56,6,56,10],[34,6,34,10],[58,11,58,38],[34,27,34,30],[34,15,34,18],[34,23,34,26],[46,27,46,38],[71,4,72,4],[59,12,60,12],[59,13,60,13],[71,8,72,8],[71,9,72,9],[72,23,72,26],[61,7,61,10],[61,11,61,38],[59,32,60,32],[59,34,60,34],[59,27,60,27],[59,20,60,20],[59,22,60,22],[59,37,60,37],[58,10,60,10],[59,35,60,35],[72,27,72,30],[74,32,75,32],[74,33,75,33],[74,34,75,34],[74,37,75,37],[74,31,75,31],[74,26,75,26],[74,27,75,27],[73,23,73,26],[73,27,73,30],[74,24,75,24],[104,9,106,9],[80,27,80,30],[96,27,96,38],[79,23,79,26],[78,6,78,10],[78,11,78,14],[93,27,93,38],[97,0,97,2],[97,27,97,38],[73,0,80,2],[76,6,77,6],[73,19,73,22],[74,20,75,20],[73,7,75,7],[73,8,75,8],[74,12,75,12],[74,13,75,13],[74,14,75,14],[74,11,75,11],[73,11,73,14],[73,3,75,3],[80,6,80,10],[80,11,80,14],[80,15,80,18],[105,24,106,24],[80,31,80,34],[100,27,100,38],[103,11,103,14],[103,15,103,18],[103,23,103,26],[103,27,103,30],[103,31,103,34],[105,13,106,13],[80,19,80,22],[105,15,106,15],[105,36,106,36],[105,29,106,29],[105,22,106,22],[105,27,106,27],[105,28,106,28],[105,25,106,25],[105,26,106,26],[105,30,106,30],[105,19,106,19],[136,27,136,30],[136,23,136,26],[105,18,106,18],[131,31,131,34],[107,1,107,2],[107,3,107,4],[107,7,107,10],[107,11,107,38],[130,35,130,38],[127,1,127,2],[128,35,128,38],[130,23,130,26],[129,4,130,4],[131,6,133,6],[132,35,133,35],[132,37,133,37],[132,38,133,38],[130,11,130,14],[105,35,106,35],[105,37,106,37],[105,38,106,38],[105,20,106,20],[105,21,106,21],[135,27,135,30],[0,29,0,38],[50,27,50,38],[3,27,3,38],[132,34,133,34],[99,27,99,38],[105,31,106,31],[102,11,102,38],[98,27,98,38],[33,27,33,30],[79,15,79,18],[132,25,133,25],[132,26,133,26],[80,23,80,26],[105,16,106,16],[105,17,106,17],[78,15,78,18],[92,27,92,38],[105,23,106,23],[104,11,104,38],[131,35,131,38],[132,14,133,14],[132,15,133,15],[132,16,133,16],[132,17,133,17],[74,38,75,38],[74,21,75,21],[74,23,75,23],[132,12,133,12],[132,13,133,13],[129,7,130,7],[129,8,130,8],[129,9,130,9],[132,18,133,18],[132,33,133,33],[131,23,131,26],[131,27,131,30],[132,28,133,28],[132,19,133,19],[132,29,133,29],[132,27,133,27],[132,20,133,20],[132,21,133,21],[132,22,133,22],[132,23,133,23],[132,24,133,24],[104,7,106,7],[105,12,106,12],[105,11,106,11],[71,3,72,3],[72,11,72,14],[73,35,73,38],[73,31,73,34],[130,27,130,30],[130,31,130,34],[130,19,130,22],[7,27,7,38],[52,27,52,38],[53,27,53,38],[94,27,94,38],[48,27,48,38],[28,37,29,37],[34,35,34,38],[33,31,33,34],[105,32,106,32],[105,33,106,33],[105,34,106,34],[80,35,80,38],[74,28,75,28],[74,29,75,29],[77,31,77,34],[74,25,75,25],[78,19,78,22],[135,11,135,14],[135,15,135,18],[135,19,135,22],[137,19,137,22],[23,1,23,2],[79,35,79,38],[77,27,77,30],[74,35,75,35],[74,36,75,36],[78,35,78,38],[33,35,33,38],[79,27,79,30],[79,31,79,34],[71,5,72,5],[76,7,77,7],[79,11,79,14],[79,19,79,22],[78,31,78,34],[74,22,75,22],[74,30,75,30],[78,3,80,5],[72,31,72,34],[72,35,72,38],[59,38,60,38],[224,31,225,31],[224,29,225,29],[224,30,225,30],[221,11,221,38],[212,0,212,2],[132,30,133,30],[135,23,135,26],[134,10,135,10],[137,11,137,14],[136,11,136,14],[136,15,136,18],[136,19,136,22],[136,6,136,10],[138,27,138,30],[138,15,138,18],[212,3,213,26],[212,27,212,38],[134,3,135,3],[134,4,135,4],[132,36,133,36],[132,32,133,32],[132,31,133,31],[135,35,135,38],[135,31,135,34],[234,3,235,3],[234,4,235,4],[234,5,235,5],[234,6,235,6],[234,1,235,2],[136,31,136,34],[136,35,136,38],[137,23,137,26],[138,31,138,34],[138,23,138,26],[228,1,228,2],[229,1,229,2],[230,1,230,2],[231,1,231,2],[226,1,226,2],[226,3,226,4],[226,7,226,10],[226,11,226,38],[219,0,219,2],[219,27,219,38],[227,1,227,2],[223,3,225,3],[223,4,225,4],[223,5,225,5],[236,31,236,34],[237,30,238,30],[237,31,238,31],[237,32,238,32],[236,35,236,38],[236,11,236,14],[236,15,236,18],[236,19,236,22],[236,23,236,26],[241,15,241,18],[241,19,241,22],[242,31,242,34],[242,35,242,38],[237,33,238,33],[237,23,238,23],[237,24,238,24],[237,25,238,25],[237,26,238,26],[243,27,243,30],[243,31,243,34],[215,0,215,2],[215,27,215,38],[221,0,225,0],[221,1,225,2],[221,3,222,5],[221,6,221,10],[224,32,225,32],[222,7,222,10],[223,10,225,10],[223,11,223,38],[224,11,225,11],[224,12,225,12],[224,13,225,13],[224,14,225,14],[224,15,225,15],[224,33,225,33],[224,34,225,34],[241,23,241,26],[241,27,241,30],[241,31,241,34],[241,35,241,38],[242,6,242,10],[235,31,235,34],[213,0,213,2],[213,27,213,38],[216,0,216,2],[216,27,216,38],[217,0,217,2],[217,27,217,38],[218,0,218,2],[218,27,218,38],[222,35,222,38],[222,11,222,14],[222,15,222,18],[222,19,222,22],[222,23,222,26],[222,27,222,30],[222,31,222,34],[222,6,225,6],[232,1,232,2],[233,1,233,2],[235,19,235,22],[235,23,235,26],[235,11,235,14],[235,15,235,18],[235,35,235,38],[224,27,225,27],[224,28,225,28],[236,7,238,7],[236,8,238,8],[234,7,235,7],[234,8,235,8],[234,9,235,9],[234,10,235,10],[236,9,238,9],[236,10,238,10],[223,8,225,8],[223,9,225,9],[224,19,225,19],[224,20,225,20],[224,21,225,21],[224,25,225,25],[224,26,225,26],[224,17,225,17],[224,18,225,18],[235,27,235,30],[236,27,236,30],[223,7,225,7],[237,16,238,16],[239,8,240,8],[239,9,240,9],[224,22,225,22],[224,24,225,24],[236,0,243,2],[236,3,238,3],[236,4,238,4],[236,5,238,5],[236,6,238,6],[239,10,240,10],[240,11,240,14],[241,3,243,5],[241,6,241,10],[243,6,243,10],[243,11,243,14],[243,15,243,18],[243,19,243,22],[243,23,243,26],[242,11,242,14],[242,15,242,18],[242,19,242,22],[242,23,242,26],[241,11,241,14],[239,4,240,4],[239,3,240,3],[239,5,240,5],[239,6,240,6],[224,35,225,35],[224,36,225,36],[224,16,225,16],[224,23,225,23],[243,35,243,38],[242,27,242,30],[224,37,225,37],[224,38,225,38],[239,7,240,7],[237,27,238,27],[237,11,238,11],[237,12,238,12],[237,13,238,13],[237,14,238,14],[237,17,238,17],[237,18,238,18],[237,19,238,19],[237,20,238,20],[237,21,238,21],[237,22,238,22],[237,15,238,15],[21,1,21,2],[4,0,4,2],[49,0,49,2],[95,0,95,2],[153,0,153,2],[214,0,214,2],[255,27,255,38],[125,1,125,2],[117,1,117,2],[119,1,119,2],[118,1,118,2],[240,15,240,18],[240,19,240,22],[240,23,240,26],[240,27,240,30],[240,31,240,34],[240,35,240,38],[237,34,238,34],[237,35,238,35],[237,36,238,36],[237,37,238,37],[237,38,238,38],[237,28,238,28],[237,29,238,29]]}
[]
[]
[null,null,null,"PLAN  STUDIÓW  NR  I",null,null,null,null,null,null,null,null,null,null,null,null,null,null,null,null,null,null,null,null,null,null,null,"ZATWIERDZAM"]
["WYDZIAŁ INŻYNIERII MECHANICZNEJ"]
[null,null,null,"PROFIL KSZTAŁCENIA:",null,null,null,null,"PROFIL OGÓLNOAKADEMICKI"]
[null,null,null,"POZIOM STUDIÓW:",null,null,null,null,"STUDIA PIERWSZEGO STOPNIA (3,5-letnie, INŻYNIERSKIE)"]
["UNIWERSYTET TECHNOLOGICZNO-PRZYRODNICZY",null,null,"FORMA STUDIÓW:",null,null,null,null,"STUDIA STACJONARNE",null,null,null,null,null,null,null,null,null,null,null,null,null,null,null,null,null,null,"PROREKTOR"]
["IM. J. i J. ŚNIADECKICH ",null,null,"KIERUNEK:",null,null,null,null,"MECHATRONIKA",null,null,null,null,null,null,null,null,null,null,null,null,null,null,null,null,null,null,"ds. Dydaktycznych  i  Studenckich"]
["w BYDGOSZCZY",null,null,"SPECJALNOŚĆ:",null,null,null,null,"1. PROGRAMOWANIE STEROWNIKÓW"]
[null,null,null,null,null,null,null,null,"2. MECHATRONIKA W POJAZDACH SAMOCHODOWYCH"]
[]
["Pozycja planu","NAZWA PRZEDMIOTU",null,"Liczba",null,null,"GODZINY",null,null,null,null,"ROZKŁAD  ZAJĘĆ  w  SEMESTRZE"]
[null,null,null,null,null,null,"Razem","w tym",null,null,null,"sem. I",null,null,null,"sem. II",null,null,null,"sem. III",null,null,null,"sem. IV",null,null,null,"sem. V",null,null,null,"sem. VI",null,null,null,"sem. VII"]
[null,null,null,"egza-mi-nów","zali-czeń","pkt. ECTS",null,"W","Ć","L ","P / S","Liczba godzin tygodniowo (semestr I - VII po 15 tygodni)"]
[null,null,null,null,null,null,null,null,null,null,null,"W","Ć","L","P/S","W","Ć","L","P/S","W","Ć","L","P/S","W","Ć","L","P/S","W","Ć","L","P/S","W","Ć","L","P/S","W","Ć","L","P/S"]
[]
["A.","PRZEDMIOTY  OGÓLNE "]
["1.","BHP i ergonomia",null,null,1,1,{"$f":"SUM(H18:K18)","v":15},15,null,null,null,1,null,null,null,null,null,null,null,null,null,null,null,null,null,null,null,null,null,null,null,null,null,null,null,null,null,null,null,{"$f":"SumaECTS(L18:AM18)","v":1}]
["2.","Język obcy3",null,1,3,5,{"$f":"SUM(H19:K19)","v":120},null,null,120,null,null,null,null,null,null,null,null,null,null,null,2,null,null,null,2,null,null,null,2,null,null,null,2,null,null,null,null,null,{"$f":"SumaECTS(L19:AM19)","v":5}]
["3.","Ochrona własności intelektualnej",null,null,1,1,15,15,null,null,null,null,null,null,null,null,null,null,null,null,null,null,null,null,null,null,null,null,null,null,null,null,null,null,null,1,null,null,null,{"$f":"SumaECTS(L20:AM20)","v":1}]
["4.","Podstawy przedsiębiorczości",null,null,1,1,15,15,null,null,null,null,null,null,null,null,null,null,null,null,null,null,null,null,null,null,null,null,null,null,null,null,null,null,null,1,null,null,null,{"$f":"SumaECTS(L21:AM21)","v":1}]
["5.","Komunikacja społeczna",null,null,1,1,15,15,null,null,null,null,null,null,null,null,null,null,null,null,null,null,null,null,null,null,null,null,null,null,null,null,null,null,null,1,null,null,null,{"$f":"SumaECTS(L22:AM22)","v":1}]
["6.","Przedmioty humanistyczne do wyboru4",null,null,2,3,45,45,null,null,null,2,null,null,null,1,null,null,null,null,null,null,null,null,null,null,null,null,null,null,null,null,null,null,null,null,null,null,null,3]
["7.","Technologie informacyjne",null,null,2,3,30,15,null,15,null,1,null,1,null,null,null,null,null,null,null,null,null,null,null,null,null,null,null,null,null,null,null,null,null,null,null,null,null,3]
["8.","Wychowanie fizyczne5",null,null,2,0,60,null,60,null,null,null,null,null,null,null,null,null,null,null,2,null,null,null,2,null,null,null,null,null,null,null,null,null,null,null,null,null,null,{"$f":"SumaECTS(L25:AM25)","v":0}]
[null,"RAZEM     ",null,{"$f":"SUM(D18:D25)","v":1},13,15,315,120,60,135,0,4,0,1,0,1,0,0,0,0,2,2,0,0,2,2,0,0,0,2,0,0,0,2,0,3,0,0,0,null,{"$f":"SUM(AN18:AN25)","v":15}]
[null,null,null,null,null,null,null,null,null,null,null,{"$f":"SUM(L26:O26)","v":5},null,null,null,{"$f":"SUM(P26:S26)","v":1},null,null,null,{"$f":"SUM(T26:W26)","v":4},null,null,null,null,{"$f":"SUM(X26:AA26)","v":4},null,null,{"$f":"SUM(AB26:AE26)","v":2},null,null,null,{"$f":"SUM(AF26:AI26)","v":2},null,null,null,{"$f":"SUM(AJ26:AM26)","v":3}]
["PODSUMOWANIE  ARKUSZA  1",null,null,"egza-mi-nów","zali-czeń","pkt. ECTS","Razem","W","Ć","L ","P / S","sem. I",null,null,null,"sem. II",null,null,null,"sem. III",null,null,null,"sem. IV",null,null,null,"sem. V",null,null,null,"sem. VI",null,null,null,"sem. VII"]
[null,null,null,null,null,null,null,null,null,null,null,"W","Ć","L","P/S","W","Ć","L","P/S","W","Ć","L","P/S","W","Ć","L","P/S","W","Ć","L","P/S","W","Ć","L","P/S","W","Ć","L","P/S"]
[]
[null,null,null,{"$f":"SUM(D26)","v":1},13,15,315,120,60,135,0,4,0,1,0,1,0,0,0,0,2,2,0,0,2,2,0,0,0,2,0,0,0,2,0,3,0,0,0,null,"SUMA"]
[null,null,null,null,null,null,null,null,null,null,null,{"$f":"SUM(L31:O31)","v":5},null,null,null,{"$f":"SUM(P31:S31)","v":1},null,null,null,{"$f":"SUM(T31:W31)","v":4},null,null,null,{"$f":"SUM(X31:AA31)","v":4},null,null,null,{"$f":"SUM(AB31:AE31)","v":2},null,null,null,{"$f":"SUM(AF31:AI31)","v":2},null,null,null,{"$f":"SUM(AJ31:AM31)","v":3},null,null,null,null,{"$f":"SUM(L32:AM32)*15","v":315}]
[null,null,null,"Liczba:  ",null,null,"egzaminów",null,null,null,null,0,null,null,null,0,null,null,null,0,null,null,null,0,null,null,null,0,null,null,null,1,null,null,null,0,null,null,null,null,{"$f":"SUM(L33:AM33)","v":1}]
[null,null,null,null,null,null,"zaliczeń",null,null,null,null,4,null,null,null,1,null,null,null,2,null,null,null,2,null,null,null,1,null,null,null,0,null,null,null,3,null,null,null,null,{"$f":"SUM(L34:AM34)","v":13}]
[null,null,null,null,null,null,"pkt. ECTS",null,null,null,null,{"$f":"SumaECTS(L18:O25)","v":6},null,null,null,{"$f":"SumaECTS(P18:S25)","v":1},null,null,null,1,null,null,null,1,null,null,null,1,null,null,null,2,null,null,null,3,null,null,null,null,{"$f":"SUM(L35:AM35)","v":15}]
[]
["UWAGI:",null,null,null,null,null,null,null,null,null,null,null,null,null,null,null,null,null,null,null,null,null,null,null,null,null,null,null,"Obowiązuje od roku akademickiego: 2018/2019"]
["1.","Dla studentów I roku studiów stacjonarnych I stopnia wszystkie formy zajęć dydaktycznych przewidziane w planie studiów są obowiązkowe. "]
[null,"Na wyższych latach obowiązkowe są: ćwiczenia audytoryjne, laboratoryjne, lektoraty, zajęcia: sportowe, terenowe, projektowe, plenerowe i seminaria.  ",null,null,null,null,null,null,null,null,null,null,null,null,null,null,null,null,null,null,null,null,null,null,null,null,null,null,"Legenda:"]
["2.","Studentów obowiązuje zaliczenie 4 tygodniowej praktyki zawodowej po IV semestrze (4 pkt ECTS).",null,null,null,null,null,null,null,null,null,null,null,null,null,null,null,null,null,null,null,null,null,null,null,null,null,null,"W "," - wykład"]
["3.","Język obcy do wyboru spośród: 1. Język angielski, 2. Język niemiecki.",null,null,null,null,null,null,null,null,null,null,null,null,null,null,null,null,null,null,null,null,null,null,null,null,null,null,"Ć "," - ćwiczenia audytoryjne"]
["4.","Przedmioty humanistyczne do wyboru spośród: 1. Ekonomia; 2. Psychologia; 3. Socjologia ogólna; 4. Filozofia.",null,null,null,null,null,null,null,null,null,null,null,null,null,null,null,null,null,null,null,null,null,null,null,null,null,null,"L "," - ćwiczenia laboratoryjne, lektorat języków obcych"]
["5.","Wychowanie fizyczne - studenci dokonują wyboru jednej formy zajęć z oferty SWFiS.",null,null,null,null,null,null,null,null,null,null,null,null,null,null,null,null,null,null,null,null,null,null,null,null,null,null,"P "," - ćwiczenia projektowe"]
[null,null,null,null,null,null,null,null,null,null,null,null,null,null,null,null,null,null,null,null,null,null,null,null,null,null,null,null,"S"," - seminarium"]
[null,null,null,null,null,null,null,null,null,null,null,null,null,null,null,null,null,null,null,null,null,null,null,null,null,null,null,null,"T "," - zajęcia terenowe"]
[null,null,null,null,null,null,null,null,null,null,null,null,null,null,null,null,null,null,null,null,null,null,null,null,null,null,null,null,null," - egzamin"]
[null,null,null,null,null,null,null,null,null,null,null,null,null,null,null,null,null,null,null,null,null,null,null,null,null,null,null,"ARKUSZ 1"]
[null,null,null,"PLAN  STUDIÓW  NR  I",null,null,null,null,null,null,null,null,null,null,null,null,null,null,null,null,null,null,null,null,null,null,null,"ZATWIERDZAM"]
["WYDZIAŁ INŻYNIERII MECHANICZNEJ"]
[null,null,null,"PROFIL KSZTAŁCENIA:",null,null,null,null,"PROFIL OGÓLNOAKADEMICKI"]
[null,null,null,"POZIOM STUDIÓW:",null,null,null,null,"STUDIA PIERWSZEGO STOPNIA (3,5-letnie, INŻYNIERSKIE)"]
["UNIWERSYTET TECHNOLOGICZNO-PRZYRODNICZY",null,null,"FORMA STUDIÓW:",null,null,null,null,"STUDIA STACJONARNE",null,null,null,null,null,null,null,null,null,null,null,null,null,null,null,null,null,null,"PROREKTOR"]
["IM. J. i J. ŚNIADECKICH ",null,null,"KIERUNEK:",null,null,null,null,"MECHATRONIKA",null,null,null,null,null,null,null,null,null,null,null,null,null,null,null,null,null,null,"ds. Dydaktycznych  i  Studenckich"]
["w BYDGOSZCZY",null,null,"SPECJALNOŚĆ:",null,null,null,null,"1. PROGRAMOWANIE STEROWNIKÓW"]
[null,null,null,null,null,null,null,null,"2. MECHATRONIKA W POJAZDACH SAMOCHODOWYCH"]
[]
["Pozycja     planu","NAZWA PRZEDMIOTU",null,"Liczba",null,null,"GODZINY",null,null,null,null,"ROZKŁAD  ZAJĘĆ  w  SEMESTRZE"]
[null,null,null,null,null,null,"Razem","w tym",null,null,null,"sem. I",null,null,null,"sem. II",null,null,null,"sem. III",null,null,null,"sem. IV",null,null,null,"sem. V",null,null,null,"sem. VI",null,null,null,"sem. VII"]
[null,null,null,"egza-mi-nów","zali-czeń","pkt. ECTS",null,"W","Ć","L ","P / S","Liczba godzin tygodniowo (semestr I - VII po 15 tygodni)"]
[null,null,null,null,null,null,null,null,null,null,null,"W","Ć","L","P/S","W","Ć","L","P/S","W","Ć","L","P/S","W","Ć","L","P/S","W","Ć","L","P/S","W","Ć","L","P/S","W","Ć","L","P/S"]
[]
["B.","PRZEDMIOTY  PODSTAWOWE"]
["1.","Fizyka",null,null,3,4,{"$f":"SUM(H63:K63)","v":60},30,15,15,null,2,1,null,null,null,null,1,null,null,null,null,null,null,null,null,null,null,null,null,null,null,null,null,null,null,null,null,null,{"$f":"SumaECTS(L63:AM63)","v":4}]
["2.","Chemia",null,null,2,4,{"$f":"SUM(H64:K64)","v":30},15,15,null,null,1,1,null,null,null,null,null,null,null,null,null,null,null,null,null,null,null,null,null,null,null,null,null,null,null,null,null,null,4]
["3.","Matematyka",null,1,3,5,{"$f":"SUM(H65:K65)","v":120},60,60,null,null,2,2,null,null,2,2,null,null,null,null,null,null,null,null,null,null,null,null,null,null,null,null,null,null,null,null,null,null,5]
["4.","Mechanika",null,1,3,5,90,45,30,15,null,null,null,null,null,2,2,1,null,1,null,null,null,null,null,null,null,null,null,null,null,null,null,null,null,null,null,null,null,5]
["5.","Wytrzymałość materiałów",null,null,3,4,{"$f":"SUM(H67:K67)","v":60},30,15,15,null,null,null,null,null,2,1,1,null,null,null,null,null,null,null,null,null,null,null,null,null,null,null,null,null,null,null,null,null,4]
["6.","Podstawy konstrukcji maszyn i urządzeń specjalnych",null,1,2,6,{"$f":"SUM(H68:K68)","v":60},30,15,15,null,2,1,1,null,null,null,null,null,null,null,null,null,null,null,null,null,null,null,null,null,null,null,null,null,null,null,null,null,6]
["7.","Teoria mechanizmów i maszyn",null,1,1,5,{"$f":"SUM(H69:K69)","v":45},15,null,null,30,null,null,null,null,null,null,null,null,1,null,null,2,null,null,null,null,null,null,null,null,null,null,null,null,null,null,null,null,5]
["8.","Materiały inżynierskie",null,null,2,4,{"$f":"SUM(H70:K70)","v":45},30,null,15,null,null,null,null,null,2,null,1,null,null,null,null,null,null,null,null,null,null,null,null,null,null,null,null,null,null,null,null,null,4]
["9.","Informatyka",null,null,2,4,{"$f":"SUM(H71:K71)","v":45},15,null,30,null,null,null,null,null,1,null,2,null,null,null,null,null,null,null,null,null,null,null,null,null,null,null,null,null,null,null,null,null,4]
[null,"RAZEM     ",null,{"$f":"SUM(D63:D71)","v":4},21,41,{"$f":"SUM(G63:G71)","v":555},270,150,105,30,7,5,1,0,9,5,6,0,2,0,0,2,0,0,0,0,0,0,0,0,0,0,0,0,0,0,0,0,null,{"$f":"SUM(AN63:AN71)","v":41}]
[null,null,null,null,null,null,null,null,null,null,null,{"$f":"SUM(L72:O72)","v":13},null,null,null,{"$f":"SUM(P72:S72)","v":20},null,null,null,{"$f":"SUM(T72:W72)","v":4},null,null,null,{"$f":"SUM(X72:AA72)","v":0},null,null,null,{"$f":"SUM(AB72:AE72)","v":0},null,null,null,{"$f":"SUM(AF72:AI72)","v":0},null,null,null,{"$f":"SUM(AJ72:AM72)","v":0}]
["PODSUMOWANIE  ARKUSZA  1+2",null,null,"egza-mi-nów","zali-czeń","pkt. ECTS","Razem","W","Ć","L ","P / S","sem. I",null,null,null,"sem. II",null,null,null,"sem. III",null,null,null,"sem. IV",null,null,null,"sem. V",null,null,null,"sem. VI",null,null,null,"sem. VII"]
[null,null,null,null,null,null,null,null,null,null,null,"W","Ć","L","P/S","W","Ć","L","P/S","W","Ć","L","P/S","W","Ć","L","P/S","W","Ć","L","P/S","W","Ć","L","P/S","W","Ć","L","P/S"]
[]
[null,null,null,{"$f":"SUM(D26+D72)","v":5},34,56,870,390,210,240,30,11,5,2,0,10,5,6,0,2,2,2,2,{"$f":"SUM(X26+X72)","v":0},2,2,0,0,0,2,0,0,0,2,0,3,0,0,0,null,"SUMA"]
[null,null,null,null,null,null,null,null,null,null,null,{"$f":"SUM(L77:O77)","v":18},null,null,null,{"$f":"SUM(P77:S77)","v":21},null,null,null,{"$f":"SUM(T77:W77)","v":8},null,null,null,{"$f":"SUM(X77:AA77)","v":4},null,null,null,{"$f":"SUM(AB77:AE77)","v":2},null,null,null,{"$f":"SUM(AF77:AI77)","v":2},null,null,null,{"$f":"SUM(AJ77:AM77)","v":3},null,null,null,null,{"$f":"SUM(L78:AM78)*15","v":870}]
[null,null,null,"Liczba:  ",null,null,"egzaminów",null,null,null,null,1,null,null,null,2,null,null,null,1,null,null,null,0,null,null,null,0,null,null,null,1,null,null,null,0,null,null,null,null,{"$f":"SUM(L79:AM79)","v":5}]
[null,null,null,null,null,null,"zaliczeń",null,null,null,null,12,null,null,null,12,null,null,null,4,null,null,null,2,null,null,null,1,null,null,null,0,null,null,null,3,null,null,null,null,{"$f":"SUM(L80:AM80)","v":34}]
[null,null,null,null,null,null,"pkt. ECTS",null,null,null,null,21,null,null,null,21,null,null,null,7,null,null,null,1,null,null,null,{"$f":"AB35+SumaECTS(AB63:AE71)","v":1},null,null,null,{"$f":"AF35+SumaECTS(AF63:AI71)","v":2},null,null,null,3,null,null,null,null,{"$f":"SUM(L81:AM81)","v":56}]
[]
["UWAGI:",null,null,null,null,null,null,null,null,null,null,null,null,null,null,null,null,null,null,null,null,null,null,null,null,null,null,null,"Obowiązuje od roku akademickiego: 2018/2019"]
["1.","Dla studentów I roku studiów stacjonarnych I stopnia wszystkie formy zajęć dydaktycznych przewidziane w planie studiów są obowiązkowe. "]
[null,"Na wyższych latach obowiązkowe są: ćwiczenia audytoryjne, laboratoryjne, lektoraty, zajęcia: sportowe, terenowe, projektowe, plenerowe i seminaria.  ",null,null,null,null,null,null,null,null,null,null,null,null,null,null,null,null,null,null,null,null,null,null,null,null,null,null,"Legenda:"]
["2.","Studentów obowiązuje zaliczenie 4 tygodniowej praktyki zawodowej po IV semestrze (4 pkt ECTS).",null,null,null,null,null,null,null,null,null,null,null,null,null,null,null,null,null,null,null,null,null,null,null,null,null,null,"W "," - wykład"]
["3.","Język obcy do wyboru spośród: 1. Język angielski, 2. Język niemiecki.",null,null,null,null,null,null,null,null,null,null,null,null,null,null,null,null,null,null,null,null,null,null,null,null,null,null,"Ć "," - ćwiczenia audytoryjne"]
["4.","Przedmioty humanistyczne do wyboru spośród: 1. Ekonomia; 2. Psychologia; 3. Socjologia ogólna; 4. Filozofia.",null,null,null,null,null,null,null,null,null,null,null,null,null,null,null,null,null,null,null,null,null,null,null,null,null,null,"L "," - ćwiczenia laboratoryjne, lektorat języków obcych"]
["5.","Wychowanie fizyczne - studenci dokonują wyboru jednej formy zajęć z oferty SWFiS.",null,null,null,null,null,null,null,null,null,null,null,null,null,null,null,null,null,null,null,null,null,null,null,null,null,null,"P "," - ćwiczenia projektowe"]
[null,null,null,null,null,null,null,null,null,null,null,null,null,null,null,null,null,null,null,null,null,null,null,null,null,null,null,null,"S"," - seminarium"]
[null,null,null,null,null,null,null,null,null,null,null,null,null,null,null,null,null,null,null,null,null,null,null,null,null,null,null,null,"T "," - zajęcia terenowe"]
[null,null,null,null,null,null,null,null,null,null,null,null,null,null,null,null,null,null,null,null,null,null,null,null,null,null,null,null,null," - egzamin"]
[null,null,null,null,null,null,null,null,null,null,null,null,null,null,null,null,null,null,null,null,null,null,null,null,null,null,null,"ARKUSZ 2"]
[null,null,null,"PLAN  STUDIÓW  NR  I",null,null,null,null,null,null,null,null,null,null,null,null,null,null,null,null,null,null,null,null,null,null,null,"ZATWIERDZAM"]
["WYDZIAŁ INŻYNIERII MECHANICZNEJ"]
[null,null,null,"PROFIL KSZTAŁCENIA:",null,null,null,null,"PROFIL OGÓLNOAKADEMICKI"]
[null,null,null,"POZIOM STUDIÓW:",null,null,null,null,"STUDIA PIERWSZEGO STOPNIA (3,5-letnie, INŻYNIERSKIE)"]
["UNIWERSYTET TECHNOLOGICZNO-PRZYRODNICZY",null,null,"FORMA STUDIÓW:",null,null,null,null,"STUDIA STACJONARNE",null,null,null,null,null,null,null,null,null,null,null,null,null,null,null,null,null,null,"PROREKTOR"]
["IM. J. i J. ŚNIADECKICH ",null,null,"KIERUNEK:",null,null,null,null,"MECHATRONIKA",null,null,null,null,null,null,null,null,null,null,null,null,null,null,null,null,null,null,"ds. Dydaktycznych  i  Studenckich"]
["w BYDGOSZCZY",null,null,"SPECJALNOŚĆ:",null,null,null,null,"1. PROGRAMOWANIE STEROWNIKÓW"]
[null,null,null,null,null,null,null,null,"2. MECHATRONIKA W POJAZDACH SAMOCHODOWYCH"]
[]
["Pozycja     planu","NAZWA PRZEDMIOTU",null,"Liczba",null,null,"GODZINY",null,null,null,null,"ROZKŁAD  ZAJĘĆ  w SEMESTRZE"]
[null,null,null,null,null,null,"Razem","w tym",null,null,null,"sem. I",null,null,null,"sem. II",null,null,null,"sem. III",null,null,null,"sem. IV",null,null,null,"sem. V",null,null,null,"sem. VI",null,null,null,"sem. VII"]
[null,null,null,"egza-mi-nów","zali-czeń","pkt. ECTS",null,"W","Ć","L ","P / S","Liczba godzin tygodniowo (semestr I - VII po 15 tygodni)"]
[null,null,null,null,null,null,null,null,null,null,null,"W","Ć","L","P/S","W","Ć","L","P/S","W","Ć","L","P/S","W","Ć","L","P/S","W","Ć","L","P/S","W","Ć","L","P/S","W","Ć","L","P/S"]
[]
["C.","PRZEDMIOTY  KIERUNKOWE"]
["1.","Wprowadzenie do mechatroniki",null,null,1,4,{"$f":"SUM(H109:K109)","v":30},30,null,null,null,2,null,null,null,null,null,null,null,null,null,null,null,null,null,null,null,null,null,null,null,null,null,null,null,null,null,null,null,{"$f":"SumaECTS(L109:AM109)","v":4}]
["2.","Grafika inżynierska",null,1,1,5,90,30,null,60,null,2,null,4,null,null,null,null,null,null,null,null,null,null,null,null,null,null,null,null,null,null,null,null,null,null,null,null,null,5]
["3.","Podstawy elektrotechniki",null,1,2,7,75,30,15,30,null,null,null,null,null,2,1,null,null,null,null,2,null,null,null,null,null,null,null,null,null,null,null,null,null,null,null,null,null,7]
["4.","Teoria sterowania",null,1,2,7,60,30,null,15,15,null,null,null,null,null,null,null,null,null,null,null,null,2,null,1,1,null,null,null,null,null,null,null,null,null,null,null,null,7]
["5.","Napędy maszyn i urządzeń",null,1,1,5,45,30,null,null,15,null,null,null,null,null,null,null,null,2,null,null,1,null,null,null,null,null,null,null,null,null,null,null,null,null,null,null,null,5]
["6.","Komputerowe wspomaganie projektowania",null,null,2,4,45,null,null,45,null,null,null,null,null,null,null,null,null,null,null,2,null,null,null,1,null,null,null,null,null,null,null,null,null,null,null,null,null,4]
["7.","Systemy pomiarowe i metrologia",null,null,2,4,45,30,null,15,null,null,null,null,null,2,null,1,null,null,null,null,null,null,null,null,null,null,null,null,null,null,null,null,null,null,null,null,null,4]
["8.","Podstawy robotyki",null,null,1,3,30,30,null,null,null,null,null,null,null,null,null,null,null,2,null,null,null,null,null,null,null,null,null,null,null,null,null,null,null,null,null,null,null,3]
["9.","Sieci komputerowe i technologie internetowe ",null,null,2,3,30,15,null,15,null,null,null,null,null,null,null,null,null,1,null,1,null,null,null,null,null,null,null,null,null,null,null,null,null,null,null,null,null,3]
["10.","Mechatronika w systemach technicznych",null,null,2,4,45,15,null,null,30,null,null,null,null,null,null,null,null,null,null,null,null,null,null,null,null,1,null,null,2,null,null,null,null,null,null,null,null,4]
["11.","Transmisja danych ",null,1,1,5,45,30,null,null,15,null,null,null,null,null,null,null,null,null,null,null,null,2,null,null,1,null,null,null,null,null,null,null,null,null,null,null,null,5]
["12.","Technika mikroprocesorowa",null,null,2,4,60,30,null,30,null,null,null,null,null,null,null,null,null,2,null,2,null,null,null,null,null,null,null,null,null,null,null,null,null,null,null,null,null,4]
["13.","Bazy danych ",null,1,1,4,45,30,null,15,null,null,null,null,null,null,null,null,null,null,null,null,null,2,null,1,null,null,null,null,null,null,null,null,null,null,null,null,null,4]
["14.","Sensory i przetworniki wielkości termodynamicznych",null,null,2,3,45,30,null,15,null,null,null,null,null,null,null,null,null,null,null,null,null,2,null,1,null,null,null,null,null,null,null,null,null,null,null,null,null,3]
["15.","Układy i zespoły elektroniczne w mechatronice ",null,null,3,4,60,30,null,15,15,null,null,null,null,null,null,null,null,2,null,1,1,null,null,null,null,null,null,null,null,null,null,null,null,null,null,null,null,4]
["16.","Języki programowania ",null,null,2,7,60,30,null,30,null,null,null,null,null,null,null,null,null,null,null,null,null,null,null,null,null,null,null,null,null,2,null,2,null,null,null,null,null,7]
["17.","Sztuczna inteligencja",null,1,null,2,30,30,null,null,null,null,null,null,null,null,null,null,null,null,null,null,null,null,null,null,null,2,null,null,null,null,null,null,null,null,null,null,null,2]
["18.","Podstawy konstrukcji urządzeń specjalnych",null,null,2,6,60,30,null,null,30,null,null,null,null,null,null,null,null,null,null,null,null,null,null,null,null,2,null,null,2,null,null,null,null,null,null,null,null,6]
["19.","Techniki wytwarzania i techniki przyrostowe ",null,null,3,4,75,30,null,30,15,null,null,null,null,null,null,null,null,null,null,null,null,2,null,2,1,null,null,null,null,null,null,null,null,null,null,null,null,4]
["20.","Praktyka zawodowa2",null,null,1,4,null,null,null,null,null,null,null,null,null,null,null,null,null,null,null,null,null,"x",null,null,null,null,null,null,null,null,null,null,null,null,null,null,null,4]
["21.","Przygotowanie i złożenie pracy dyplomowej oraz przygotowanie do egzaminu dyplomowego",null,null,1,15,null,null,null,null,null,null,null,null,null,null,null,null,null,null,null,null,null,null,null,null,null,null,null,null,null,null,null,null,null,"X",null,null,null,15]
[null,"RAZEM     ",null,{"$f":"SUM(D109:D129)","v":7},34,104,975,510,15,315,135,4,0,4,0,4,1,1,0,9,0,8,2,10,0,6,3,5,0,0,4,2,0,2,0,{"$f":"SUM(AJ109:AJ128)","v":0},{"$f":"SUM(AK109:AK128)","v":0},{"$f":"SUM(AL109:AL128)","v":0},{"$f":"SUM(AM109:AM128)","v":0},null,{"$f":"SUM(AN109:AN129)","v":104}]
[null,null,null,null,null,null,null,null,null,null,null,{"$f":"SUM(L130:O130)","v":8},null,null,null,{"$f":"SUM(P130:S130)","v":6},null,null,null,{"$f":"SUM(T130:W130)","v":19},null,null,null,{"$f":"SUM(X130:AA130)","v":19},null,null,null,{"$f":"SUM(AB130:AE130)","v":9},null,null,null,{"$f":"SUM(AF130:AI130)","v":4},null,null,null,{"$f":"SUM(AJ130:AM130)","v":0}]
["PODSUMOWANIE  ARKUSZA  1+2+3",null,null,"egza-mi-nów","zali-czeń","pkt. ECTS","Razem","W","Ć","L ","P / S","sem. I",null,null,null,"sem. II",null,null,null,"sem. III",null,null,null,"sem. IV",null,null,null,"sem. V",null,null,null,"sem. VI",null,null,null,"sem. VII"]
[null,null,null,null,null,null,null,null,null,null,null,"W","Ć","L","P/S","W","Ć","L","P/S","W","Ć","L","P/S","W","Ć","L","P/S","W","Ć","L","P/S","W","Ć","L","P/S","W","Ć","L","P/S"]
[]
[null,null,null,{"$f":"SUM(D26+D130+D72)","v":12},{"$f":"SUM(E26+E130+E72)","v":68},{"$f":"SUM(F72+F130+F26)","v":160},{"$f":"SUM(G130+G72+G26)","v":1845},{"$f":"SUM(H26+H130+H72)","v":900},{"$f":"SUM(I26+I130+I72)","v":225},{"$f":"SUM(J26+J130+J72)","v":555},{"$f":"SUM(K26+K130+K72)","v":165},{"$f":"SUM(L72+L130+L26)","v":15},5,6,0,14,6,7,0,11,2,10,4,10,2,8,3,5,0,2,4,2,0,4,0,3,0,0,0,null,"SUMA"]
[null,null,null,null,null,null,null,null,null,null,null,{"$f":"SUM(L135:O135)","v":26},null,null,null,{"$f":"SUM(P135:S135)","v":27},null,null,null,{"$f":"SUM(T135:W135)","v":27},null,null,null,{"$f":"SUM(X135:AA135)","v":23},null,null,null,{"$f":"SUM(AB135:AE135)","v":11},null,null,null,{"$f":"SUM(AF135:AI135)","v":6},null,null,null,{"$f":"SUM(AJ135:AM135)","v":3},null,null,null,null,{"$f":"SUM(L136:AM136)*15","v":1845}]
[null,null,null,"Liczba:  ",null,null,"egzaminów",null,null,null,null,2,null,null,null,3,null,null,null,2,null,null,null,3,null,null,null,1,null,null,null,1,null,null,null,0,null,null,null,null,{"$f":"SUM(L137:AM137)","v":12}]
[null,null,null,null,null,null,"zaliczeń",null,null,null,null,14,null,null,null,15,null,null,null,15,null,null,null,13,null,null,null,5,null,null,null,2,null,null,null,4,null,null,null,null,{"$f":"SUM(L138:AM138)","v":68}]
[null,null,null,null,null,null,"pkt. ECTS",null,null,null,null,30,null,null,null,30,null,null,null,30,null,null,null,30,null,null,null,13,null,null,null,9,null,null,null,18,null,null,null,null,{"$f":"SUM(L139:AM139)","v":160}]
[]
["UWAGI:",null,null,null,null,null,null,null,null,null,null,null,null,null,null,null,null,null,null,null,null,null,null,null,null,null,null,null,"Obowiązuje od roku akademickiego: 2018/2019"]
["1.","Dla studentów I roku studiów stacjonarnych I stopnia wszystkie formy zajęć dydaktycznych przewidziane w planie studiów są obowiązkowe. "]
[null,"Na wyższych latach obowiązkowe są: ćwiczenia audytoryjne, laboratoryjne, lektoraty, zajęcia: sportowe, terenowe, projektowe, plenerowe i seminaria.  ",null,null,null,null,null,null,null,null,null,null,null,null,null,null,null,null,null,null,null,null,null,null,null,null,null,null,"Legenda:"]
["2.","Studentów obowiązuje zaliczenie 4 tygodniowej praktyki zawodowej po IV semestrze (4 pkt ECTS).",null,null,null,null,null,null,null,null,null,null,null,null,null,null,null,null,null,null,null,null,null,null,null,null,null,null,"W "," - wykład"]
["3.","Język obcy do wyboru spośród: 1. Język angielski, 2. Język niemiecki.",null,null,null,null,null,null,null,null,null,null,null,null,null,null,null,null,null,null,null,null,null,null,null,null,null,null,"Ć "," - ćwiczenia audytoryjne"]
["4.","Przedmioty humanistyczne do wyboru spośród: 1. Ekonomia; 2. Psychologia; 3. Socjologia ogólna; 4. Filozofia.",null,null,null,null,null,null,null,null,null,null,null,null,null,null,null,null,null,null,null,null,null,null,null,null,null,null,"L "," - ćwiczenia laboratoryjne, lektorat języków obcych"]
["5.","Wychowanie fizyczne - studenci dokonują wyboru jednej formy zajęć z oferty SWFiS.",null,null,null,null,null,null,null,null,null,null,null,null,null,null,null,null,null,null,null,null,null,null,null,null,null,null,"P "," - ćwiczenia projektowe"]
[null,null,null,null,null,null,null,null,null,null,null,null,null,null,null,null,null,null,null,null,null,null,null,null,null,null,null,null,"S"," - seminarium"]
[null,null,null,null,null,null,null,null,null,null,null,null,null,null,null,null,null,null,null,null,null,null,null,null,null,null,null,null,"T "," - zajęcia terenowe"]
[null,null,null,null,null,null,null,null,null,null,null,null,null,null,null,null,null,null,null,null,null,null,null,null,null,null,null,null,null," - egzamin"]
[null,null,null,null,null,null,null,null,null,null,null,null,null,null,null,null,null,null,null,null,null,null,null,null,null,null,null,"ARKUSZ 3"]
[null,null,null,"PLAN  STUDIÓW  NR  I",null,null,null,null,null,null,null,null,null,null,null,null,null,null,null,null,null,null,null,null,null,null,null,"ZATWIERDZAM"]
["WYDZIAŁ INŻYNIERII MECHANICZNEJ"]
[null,null,null,"PROFIL KSZTAŁCENIA:",null,null,null,null,"PROFIL OGÓLNOAKADEMICKI"]
[null,null,null,"POZIOM STUDIÓW:",null,null,null,null,"STUDIA PIERWSZEGO STOPNIA (3,5-letnie, INŻYNIERSKIE)"]
["UNIWERSYTET TECHNOLOGICZNO-PRZYRODNICZY",null,null,"FORMA STUDIÓW:",null,null,null,null,"STUDIA STACJONARNE",null,null,null,null,null,null,null,null,null,null,null,null,null,null,null,null,null,null,"PROREKTOR"]
["IM. J. i J. ŚNIADECKICH ",null,null,"KIERUNEK:",null,null,null,null,"MECHATRONIKA",null,null,null,null,null,null,null,null,null,null,null,null,null,null,null,null,null,null,"ds. Dydaktycznych  i  Studenckich"]
["w BYDGOSZCZY",null,null,"SPECJALNOŚĆ:",null,null,null,null,"1. PROGRAMOWANIE STEROWNIKÓW"]
[]
[]
["Pozycja     planu","NAZWA PRZEDMIOTU",null,"Liczba",null,null,"GODZINY",null,null,null,null,"ROZKŁAD  ZAJĘĆ  w SEMESTRZE"]
[null,null,null,null,null,null,"Razem","w tym",null,null,null,"sem. I",null,null,null,"sem. II",null,null,null,"sem. III",null,null,null,"sem. IV",null,null,null,"sem. V",null,null,null,"sem. VI",null,null,null,"sem. VII"]
[null,null,null,"egza-mi-nów","zali-czeń","pkt. ECTS",null,"W","Ć","L ","P / S","Liczba godzin tygodniowo (semestr I - VII po 15 tygodni)"]
[null,null,null,null,null,null,null,null,null,null,null,"W","Ć","L","P/S","W","Ć","L","P/S","W","Ć","L","P/S","W","Ć","L","P/S","W","Ć","L","P/S","W","Ć","L","P/S","W","Ć","L","P/S"]
[]
["D.1.","PRZEDMIOTY SPECJALNOŚCIOWE"]
["1.","Matematyka w mechatronice",null,null,2,4,{"$f":"SUM(H167:K167)","v":60},30,30,null,null,null,null,null,null,null,null,null,null,null,null,null,null,null,null,null,null,2,2,null,null,null,null,null,null,null,null,null,null,{"$f":"SumaECTS(L167:AM167)","v":4}]
["2.","Projektowanie i programowanie układów sterowania",null,1,3,15,120,30,30,30,30,null,null,null,null,null,null,null,null,null,null,null,null,null,null,null,null,2,null,null,null,null,2,2,2,null,null,null,null,15]
["3.","Programowanie robotów",null,1,3,14,120,30,30,30,30,null,null,null,null,null,null,null,null,null,null,null,null,null,null,null,null,2,2,null,null,null,null,2,2,null,null,null,null,14]
["4.","Automatyzacja procesów przemysłowych",null,1,2,9,90,30,null,30,30,null,null,null,null,null,null,null,null,null,null,null,null,null,null,null,null,null,null,null,null,null,null,null,null,2,null,2,2,9]
["5.","Panele i interfejsy komunikacyjne",null,1,1,4,30,15,null,null,15,null,null,null,null,null,null,null,null,null,null,null,null,null,null,null,null,null,null,null,null,1,null,null,null,null,null,null,1,4]
["6.","Seminarium dyplomowe",null,null,2,4,30,null,null,null,30,null,null,null,null,null,null,null,null,null,null,null,null,null,null,null,null,null,null,null,null,null,null,null,1,null,null,null,1,4]
[null,"RAZEM     ",null,{"$f":"SUM(D167:D172)","v":4},13,50,450,135,90,90,135,0,0,0,0,0,0,0,0,0,0,0,0,0,0,0,0,6,4,0,0,1,2,4,5,2,0,2,4,null,{"$f":"SUM(AN167:AN172)","v":50}]
[null,null,null,null,null,null,null,null,null,null,null,{"$f":"SUM(L173:O173)","v":0},null,null,null,{"$f":"SUM(P173:S173)","v":0},null,null,null,{"$f":"SUM(T173:W173)","v":0},null,null,null,{"$f":"SUM(X173:AA173)","v":0},null,null,null,{"$f":"SUM(AB173:AE173)","v":10},null,null,null,{"$f":"SUM(AF173:AI173)","v":12},null,null,null,{"$f":"SUM(AJ173:AM173)","v":8},null,null,null,{"$f":"SUM(AN1:AN173)","v":210}]
["PODSUMOWANIE  ARKUSZA  1+2+3+4",null,null,"egza-mi-nów","zali-czeń","pkt. ECTS","Razem","W","Ć","L ","P / S","sem. I",null,null,null,"sem. II",null,null,null,"sem. III",null,null,null,"sem. IV",null,null,null,"sem. V",null,null,null,"sem. VI",null,null,null,"sem. VII"]
[null,null,null,null,null,null,null,null,null,null,null,"W","Ć","L","P/S","W","Ć","L","P/S","W","Ć","L","P/S","W","Ć","L","P/S","W","Ć","L","P/S","W","Ć","L","P/S","W","Ć","L","P/S"]
[]
[null,null,null,{"$f":"SUM(D26+D72+D173+D130)","v":16},{"$f":"SUM(E26+E72+E173+E130)","v":81},{"$f":"SUM(F26+F72+F173+F130)","v":210},{"$f":"SUM(G26+G72+G130+G173)","v":2295},{"$f":"SUM(H135+H173)","v":1035},{"$f":"SUM(I135+I173)","v":315},{"$f":"SUM(J135+J173)","v":645},{"$f":"SUM(K135+K173)","v":300},{"$f":"SUM(L26+L130+L173+L72)","v":15},5,6,0,14,6,7,0,11,2,10,4,10,2,8,3,11,4,2,4,3,2,8,5,5,0,2,4,null,"SUMA"]
[null,null,null,null,null,null,null,null,null,null,null,{"$f":"SUM(L178:O178)","v":26},null,null,null,{"$f":"SUM(P178:S178)","v":27},null,null,null,{"$f":"SUM(T178:W178)","v":27},null,null,null,{"$f":"SUM(X178:AA178)","v":23},null,null,null,{"$f":"SUM(AB178:AE178)","v":21},null,null,null,{"$f":"SUM(AF178:AI178)","v":18},null,null,null,{"$f":"SUM(AJ178:AM178)","v":11},null,null,null,null,{"$f":"SUM(L179:AM179)*15","v":2295}]
[null,null,null,"Liczba:  ",null,null,"egzaminów",null,null,null,null,2,null,null,null,3,null,null,null,2,null,null,null,3,null,null,null,3,null,null,null,2,null,null,null,1,null,null,null,null,{"$f":"SUM(L180:AM180)","v":16}]
[null,null,null,null,null,null,"zaliczeń",null,null,null,null,14,null,null,null,15,null,null,null,15,null,null,null,13,null,null,null,8,null,null,null,8,null,null,null,8,null,null,null,null,{"$f":"SUM(L181:AM181)","v":81}]
[null,null,null,null,null,null,"pkt. ECTS",null,null,null,null,{"$f":"L139+SumaECTS(L167:O172)","v":30},null,null,null,{"$f":"P139+SumaECTS(P167:S172)","v":30},null,null,null,{"$f":"T139+SumaECTS(T167:W172)","v":30},null,null,null,{"$f":"X139+SumaECTS(X167:AA172)","v":30},null,null,null,{"$f":"AB139+SumaECTS(AB167:AE172)","v":30},null,null,null,30,null,null,null,30,null,null,null,null,{"$f":"SUM(L182:AM182)","v":210}]
[]
["UWAGI:",null,null,null,null,null,null,null,null,null,null,null,null,null,null,null,null,null,null,null,null,null,null,null,null,null,null,null,"Obowiązuje od roku akademickiego: 2018/2019"]
["1.","Dla studentów I roku studiów stacjonarnych I stopnia wszystkie formy zajęć dydaktycznych przewidziane w planie studiów są obowiązkowe. "]
[null,"Na wyższych latach obowiązkowe są: ćwiczenia audytoryjne, laboratoryjne, lektoraty, zajęcia: sportowe, terenowe, projektowe, plenerowe i seminaria.  ",null,null,null,null,null,null,null,null,null,null,null,null,null,null,null,null,null,null,null,null,null,null,null,null,null,null,"Legenda:"]
["2.","Studentów obowiązuje zaliczenie 4 tygodniowej praktyki zawodowej po IV semestrze (4 pkt ECTS).",null,null,null,null,null,null,null,null,null,null,null,null,null,null,null,null,null,null,null,null,null,null,null,null,null,null,"W "," - wykład"]
["3.","Język obcy do wyboru spośród: 1. Język angielski, 2. Język niemiecki.",null,null,null,null,null,null,null,null,null,null,null,null,null,null,null,null,null,null,null,null,null,null,null,null,null,null,"Ć "," - ćwiczenia audytoryjne"]
["4.","Przedmioty humanistyczne do wyboru spośród: 1. Ekonomia; 2. Psychologia; 3. Socjologia ogólna; 4. Filozofia.",null,null,null,null,null,null,null,null,null,null,null,null,null,null,null,null,null,null,null,null,null,null,null,null,null,null,"L "," - ćwiczenia laboratoryjne, lektorat języków obcych"]
["5.","Wychowanie fizyczne - studenci dokonują wyboru jednej formy zajęć z oferty SWFiS.",null,null,null,null,null,null,null,null,null,null,null,null,null,null,null,null,null,null,null,null,null,null,null,null,null,null,"P "," - ćwiczenia projektowe"]
[null,null,null,null,null,null,null,null,null,null,null,null,null,null,null,null,null,null,null,null,null,null,null,null,null,null,null,null,"S"," - seminarium"]
[null,null,null,null,null,null,null,null,null,null,null,null,null,null,null,null,null,null,null,null,null,null,null,null,null,null,null,null,"T "," - zajęcia terenowe"]
[null,null,null,null,null,null,null,null,null,null,null,null,null,null,null,null,null,null,null,null,null,null,null,null,null,null,null,null,null," - egzamin"]
[null,null,null,null,null,null,null,null,null,null,null,null,null,null,null,null,null,null,null,null,null,null,null,null,null,null,null,"ARKUSZ 4"]
[]
[]
[]
[]
[]
[]
[]
[]
[]
[]
[]
[]
[]
[]
[]
[]
[]
[]
[null,null,null,"PLAN  STUDIÓW  NR  I",null,null,null,null,null,null,null,null,null,null,null,null,null,null,null,null,null,null,null,null,null,null,null,"ZATWIERDZAM"]
["WYDZIAŁ INŻYNIERII MECHANICZNEJ"]
[null,null,null,"PROFIL KSZTAŁCENIA:",null,null,null,null,"PROFIL OGÓLNOAKADEMICKI"]
[null,null,null,"POZIOM STUDIÓW:",null,null,null,null,"STUDIA PIERWSZEGO STOPNIA (3,5-letnie, INŻYNIERSKIE)"]
["UNIWERSYTET TECHNOLOGICZNO-PRZYRODNICZY",null,null,"FORMA STUDIÓW:",null,null,null,null,"STUDIA STACJONARNE",null,null,null,null,null,null,null,null,null,null,null,null,null,null,null,null,null,null,"PROREKTOR"]
["IM. J. i J. ŚNIADECKICH ",null,null,"KIERUNEK:",null,null,null,null,"MECHATRONIKA",null,null,null,null,null,null,null,null,null,null,null,null,null,null,null,null,null,null,"ds. Dydaktycznych  i  Studenckich"]
["w BYDGOSZCZY",null,null,"SPECJALNOŚĆ:"]
[null,null,null,null,null,null,null,null,"2. MECHATRONIKA W POJAZDACH SAMOCHODOWYCH"]
[]
["Pozycja     planu","NAZWA PRZEDMIOTU",null,"Liczba",null,null,"GODZINY",null,null,null,null,"ROZKŁAD  ZAJĘĆ  w SEMESTRZE"]
[null,null,null,null,null,null,"Razem","w tym",null,null,null,"sem. I",null,null,null,"sem. II",null,null,null,"sem. III",null,null,null,"sem. IV",null,null,null,"sem. V",null,null,null,"sem. VI",null,null,null,"sem. VII"]
[null,null,null,"egza-mi-nów","zali-czeń","pkt. ECTS",null,"W","Ć","L ","P / S","Liczba godzin tygodniowo (semestr I - VII po 15 tygodni)"]
[null,null,null,null,null,null,null,null,null,null,null,"W","Ć","L","P/S","W","Ć","L","P/S","W","Ć","L","P/S","W","Ć","L","P/S","W","Ć","L","P/S","W","Ć","L","P/S","W","Ć","L","P/S"]
[]
["D.2.","PRZEDMIOTY SPECJALNOŚCIOWE"]
["1.","Teoria ruchu pojazdów",null,1,1,6,{"$f":"SUM(H228:K228)","v":60},30,30,null,null,null,null,null,null,null,null,null,null,null,null,null,null,null,null,null,null,2,2,null,null,null,null,null,null,null,null,null,null,{"$f":"SumaECTS(L228:AM228)","v":6}]
["2.","Elektrotechnika i elektronika samochodowa",null,1,3,13,105,30,30,30,15,null,null,null,null,null,null,null,null,null,null,null,null,null,null,null,null,2,2,null,null,null,null,2,1,null,null,null,null,13]
["3.","Mechatroniczne układy sterowania napędem",null,1,3,9,90,15,15,30,30,null,null,null,null,null,null,null,null,null,null,null,null,null,null,null,null,null,null,null,null,null,null,null,null,1,1,2,2,9]
["4.","Nowoczesne źródła napędu",null,1,2,7,45,15,null,15,15,null,null,null,null,null,null,null,null,null,null,null,null,null,null,null,null,null,null,null,null,1,null,1,1,null,null,null,null,7]
["5.","Diagnozowanie układów mechatronicznych pokładowych",null,null,3,5,90,30,null,30,30,null,null,null,null,null,null,null,null,null,null,null,null,null,null,null,null,2,null,null,null,null,null,2,2,null,null,null,null,5]
["6.","Budowa pojazdów",null,1,1,6,30,15,null,null,15,null,null,null,null,null,null,null,null,null,null,null,null,null,null,null,null,null,null,null,null,1,null,null,null,null,null,null,1,6]
["7.","Seminarium dyplomowe",null,null,2,4,30,null,null,null,30,null,null,null,null,null,null,null,null,null,null,null,null,null,null,null,null,null,null,null,null,null,null,null,1,null,null,null,1,4]
[null,"RAZEM     ",null,{"$f":"SUM(D228:D234)","v":5},15,50,450,135,75,105,135,0,0,0,0,0,0,0,0,0,0,0,0,0,0,0,0,6,4,0,0,2,0,5,5,1,1,2,4,null,{"$f":"SUM(AN228:AN234)","v":50}]
[null,null,null,null,null,null,null,null,null,null,null,{"$f":"SUM(L235:O235)","v":0},null,null,null,{"$f":"SUM(P235:S235)","v":0},null,null,null,{"$f":"SUM(T235:W235)","v":0},null,null,null,{"$f":"SUM(X235:AA235)","v":0},null,null,null,{"$f":"SUM(AB235:AE235)","v":10},null,null,null,{"$f":"SUM(AF235:AI235)","v":12},null,null,null,{"$f":"SUM(AJ235:AM235)","v":8}]
["PODSUMOWANIE  ARKUSZA  1+2+3+5",null,null,"egza-mi-nów","zali-czeń","pkt. ECTS","Razem","W","Ć","L ","P / S","sem. I",null,null,null,"sem. II",null,null,null,"sem. III",null,null,null,"sem. IV",null,null,null,"sem. V",null,null,null,"sem. VI",null,null,null,"sem. VII"]
[null,null,null,null,null,null,null,null,null,null,null,"W","Ć","L","P/S","W","Ć","L","P/S","W","Ć","L","P/S","W","Ć","L","P/S","W","Ć","L","P/S","W","Ć","L","P/S","W","Ć","L","P/S"]
[]
[null,null,null,{"$f":"SUM(D31+D72+D130+D235)","v":17},{"$f":"SUM(E26+E72+E130+E235)","v":83},{"$f":"SUM(F26+F72+F235+F130)","v":210},{"$f":"SUM(G130+G72+G26+G235)","v":2295},{"$f":"(H135+H235)","v":1035},{"$f":"(I135+I235)","v":300},{"$f":"(J135+J235)","v":660},{"$f":"(K135+K235)","v":300},{"$f":"L135+L235","v":15},5,6,0,14,6,7,0,11,2,10,4,10,2,8,3,11,4,2,4,4,0,9,5,4,1,2,4,"SUMA"]
[null,null,null,null,null,null,null,null,null,null,null,{"$f":"SUM(L240:O240)","v":26},null,null,null,{"$f":"SUM(P240:S240)","v":27},null,null,null,{"$f":"SUM(T240:W240)","v":27},null,null,null,{"$f":"SUM(X240:AA240)","v":23},null,null,null,{"$f":"SUM(AB240:AE240)","v":21},null,null,null,{"$f":"SUM(AF240:AI240)","v":18},null,null,null,{"$f":"SUM(AJ240:AM240)","v":11},null,null,null,{"$f":"SUM(K241:AL241)*15","v":2295}]
[null,null,null,"Liczba:  ",null,null,"egzaminów",null,null,null,null,2,null,null,null,3,null,null,null,2,null,null,null,3,null,null,null,3,null,null,null,3,null,null,null,1,null,null,null,{"$f":"SUM(K242:AL242)","v":17}]
[null,null,null,null,null,null,"zaliczeń",null,null,null,null,14,null,null,null,15,null,null,null,15,null,null,null,13,null,null,null,8,null,null,null,9,null,null,null,9,null,null,null,{"$f":"SUM(K243:AL243)","v":83}]
[null,null,null,null,null,null,"pkt. ECTS",null,null,null,null,{"$f":"L139+SumaECTS(L228:O234)","v":30},null,null,null,{"$f":"P139+SumaECTS(P228:S234)","v":30},null,null,null,{"$f":"T139+SumaECTS(T228:W234)","v":30},null,null,null,{"$f":"X139+SumaECTS(X228:AA234)","v":30},null,null,null,{"$f":"AB139+SumaECTS(AB228:AE234)","v":30},null,null,null,30,null,null,null,30,null,null,null,{"$f":"SUM(K244:AL244)","v":210}]
[]
["UWAGI:",null,null,null,null,null,null,null,null,null,null,null,null,null,null,null,null,null,null,null,null,null,null,null,null,null,null,null,"Obowiązuje od roku akademickiego: 2018/2019"]
["1.","Dla studentów I roku studiów stacjonarnych I stopnia wszystkie formy zajęć dydaktycznych przewidziane w planie studiów są obowiązkowe. "]
[null,"Na wyższych latach obowiązkowe są: ćwiczenia audytoryjne, laboratoryjne, lektoraty, zajęcia: sportowe, terenowe, projektowe, plenerowe i seminaria.  ",null,null,null,null,null,null,null,null,null,null,null,null,null,null,null,null,null,null,null,null,null,null,null,null,null,null,"Legenda:"]
["2.","Studentów obowiązuje zaliczenie 4 tygodniowej praktyki zawodowej po IV semestrze (4 pkt ECTS).",null,null,null,null,null,null,null,null,null,null,null,null,null,null,null,null,null,null,null,null,null,null,null,null,null,null,"W "," - wykład"]
["3.","Język obcy do wyboru spośród: 1. Język angielski, 2. Język niemiecki.",null,null,null,null,null,null,null,null,null,null,null,null,null,null,null,null,null,null,null,null,null,null,null,null,null,null,"Ć "," - ćwiczenia audytoryjne"]
["4.","Przedmioty humanistyczne do wyboru spośród: 1. Ekonomia; 2. Psychologia; 3. Socjologia ogólna; 4. Filozofia.",null,null,null,null,null,null,null,null,null,null,null,null,null,null,null,null,null,null,null,null,null,null,null,null,null,null,"L "," - ćwiczenia laboratoryjne, lektorat języków obcych"]
["5.","Wychowanie fizyczne - studenci dokonują wyboru jednej formy zajęć z oferty SWFiS.",null,null,null,null,null,null,null,null,null,null,null,null,null,null,null,null,null,null,null,null,null,null,null,null,null,null,"P "," - ćwiczenia projektowe"]
[null,null,null,null,null,null,null,null,null,null,null,null,null,null,null,null,null,null,null,null,null,null,null,null,null,null,null,null,"S"," - seminarium"]
[null,null,null,null,null,null,null,null,null,null,null,null,null,null,null,null,null,null,null,null,null,null,null,null,null,null,null,null,"T "," - zajęcia terenowe"]
[null,null,null,null,null,null,null,null,null,null,null,null,null,null,null,null,null,null,null,null,null,null,null,null,null,null,null,null,null," - egzamin"]
[null,null,null,null,null,null,null,null,null,null,null,null,null,null,null,null,null,null,null,null,null,null,null,null,null,null,null,"ARKUSZ 5"]

{"sheet":"plan ECTS","index":1,"n_rows":121,"n_cols":7,"rows_kept":121,"cut":false,"hidden":false,"merged":[]}
[null,"Wydział:","INŻYNIERII MECHANICZNEJ"]
[]
[null,"POZIOM STUDIÓW:","STUDIA PIERWSZEGO STOPNIA (3,5-letnie inżynierskie)"]
[null,"FORMA STUDIÓW:","STUDIA STACJONARNE"]
[null,"KIERUNEK:","MECHATRONIKA"]
[null,"SPECJALNOŚĆ:","1. PROGRAMOWANIE STEROWNIKÓW"]
[null,null,"2. MECHATRONIKA W POJAZDACH SAMOCHODOWYCH"]
[]
[null,"Plan nr","I"]
[null,"Obowiązuje od roku akademickiego: ","2018/2019"]
[]
[null,"szkolenie BHP - 4 godz."]
["Lp.","SEMESTR I","w","ćw","l","p","ECTS"]
["1.","BHP i ergonomia",1,null,null,null,1]
["2.","Przedmioty humanistyczne do wyboru (4)",2,null,null,null,2]
["3.","Technologie informacyjne ",1,null,1,null,3]
["4.","Fizyka",2,1,null,null,3]
["5.","Chemia",1,1,null,null,4]
["6.","Matematyka",2,2,null,null,2]
["7.","Podstawy konstrukcji maszyn i urządzeń specjalnych",2,1,1,null,6]
["8.","Wprowadzenie do mechatroniki",2,null,null,null,4]
["9.","Grafika inżynierska",2,null,4,null,5]
[null,"suma",{"$f":"SUM(C14:C22)","v":15},{"$f":"SUM(D14:D21)","v":5},{"$f":"SUM(E14:E22)","v":6},{"$f":"SUM(F14:F21)","v":0},{"$f":"SUM(G14:G22)","v":30}]
[null,null,{"$f":"SUM(C23:F23)","v":26}]
["Lp.","SEMESTR II","w","ćw","l","p","ECTS"]
["1.","Przedmioty humanistyczne do wyboru (4)",1,null,null,null,1]
["2.","Fizyka",null,null,1,null,1]
["3.","Matematyka",2,2,null,null,3]
["4.","Mechanika",2,2,1,null,4]
["5.","Wytrzymałość materiałów",2,1,1,null,4]
["6.","Materiały inżynierskie",2,null,1,null,4]
["7.","Informatyka",1,null,2,null,4]
["8.","Podstawy elektrotechniki",2,1,null,null,5]
["9.","Systemy pomiarowe i metrologia",2,null,1,null,4]
[null,"suma",{"$f":"SUM(C26:C34)","v":14},{"$f":"SUM(D26:D34)","v":6},{"$f":"SUM(E26:E34)","v":7},{"$f":"SUM(F26:F34)","v":0},{"$f":"SUM(G26:G34)","v":30}]
[null,null,{"$f":"SUM(C35:F35)","v":27}]
["Lp.","SEMESTR III","w","ćw","l","p","ECTS"]
["1.","Język obcy (3)",null,null,2,null,1]
["2.","Wychowanie fizyczne (5)",null,2,null,null,0]
["3.","Mechanika",1,null,null,null,1]
["4.","Teoria mechanizmów i maszyn",1,null,null,2,5]
["5.","Podstawy elektrotechniki",null,null,2,null,2]
["6.","Napędy maszyn i urządzeń",2,null,null,1,5]
["7.","Komputerowe wspomaganie projektowania",null,null,2,null,2]
["8.","Podstawy robotyki",2,null,null,null,3]
["9.","Sieci komputerowe i technologie internetowe",1,null,1,null,3]
["10.","Techniki mikroprocesorowa",2,null,2,null,4]
["11.","Układy i zespoły elektroniczne w mechatronice",2,null,1,1,4]
[null,"suma",{"$f":"SUM(C38:C48)","v":11},{"$f":"SUM(D38:D47)","v":2},{"$f":"SUM(E38:E48)","v":10},{"$f":"SUM(F38:F48)","v":4},{"$f":"SUM(G38:G48)","v":30}]
[null,null,{"$f":"SUM(C49:F49)","v":27}]
["Lp.","SEMESTR IV","w","ćw","l","p","ECTS"]
["1.","Język obcy (3)",null,null,2,null,1]
["2.","Wychowanie fizyczne (5)",null,2,null,null,0]
["3.","Teoria sterowania",2,null,1,1,7]
["4.","Komputerowe wspomaganie projektowania",null,null,1,null,2]
["5.","Transmisja danych",2,null,null,1,5]
["6.","Bazy danych",2,null,1,null,4]
["7.","Sensory i przetworniki wielkości termodynamicznych",2,null,1,null,3]
["8.","Techniki wytwarzania i techniki przyrostowe",2,null,2,1,4]
["9.","Praktyka zawodowa ",null,null,null,null,4]
[null,"suma",{"$f":"SUM(C52:C60)","v":10},{"$f":"SUM(D52:D60)","v":2},{"$f":"SUM(E52:E60)","v":8},{"$f":"SUM(F52:F60)","v":3},{"$f":"SUM(G52:G60)","v":30}]
[null,null,{"$f":"SUM(C61:F61)","v":23}]
["Lp.","SEMESTR V sp.1","w","ćw","l","p","ECTS"]
["1.","Język obcy (3)",null,null,2,null,1]
["2.","Mechatronika w systemach technicznych",1,null,null,2,4]
["3.","Sztuczna inteligencja",2,null,null,null,2]
["4.","Podstawy konstrukcji urządzeń specjalnych",2,null,null,2,6]
["5.","Matematyka w mechatronice",2,2,null,null,4]
["6.","Projektowanie i programowanie układów sterowania",2,null,null,null,6]
["7.","Programowanie robotów",2,2,null,null,7]
[null,"suma",{"$f":"SUM(C64:C70)","v":11},{"$f":"SUM(D64:D70)","v":4},{"$f":"SUM(E64:E70)","v":2},{"$f":"SUM(F64:F70)","v":4},{"$f":"SUM(G64:G70)","v":30}]
[null,null,{"$f":"SUM(C71:F71)","v":21}]
["Lp.","SEMESTR VI sp. 1","w","ćw","l","p","ECTS"]
["1.","Język obcy (3)",null,null,2,null,2]
["2.","Języki programowania",2,null,2,null,7]
["3.","Projektowanie i programowanie układów sterowania",null,2,2,2,9]
["4.","Programowanie robotów",null,null,2,2,7]
["5.","Panele i interfejsy komunikacyjne",1,null,null,null,3]
["6.","Seminarium dyplomowe",null,null,null,1,2]
[null,"suma",{"$f":"SUM(C74:C79)","v":3},{"$f":"SUM(D74:D79)","v":2},{"$f":"SUM(E74:E79)","v":8},{"$f":"SUM(F74:F79)","v":5},{"$f":"SUM(G74:G79)","v":30}]
[null,null,{"$f":"SUM(C80:F80)","v":18}]
["Lp.","SEMESTR VII sp. 1","w","ćw","l","p","ECTS"]
["1.","Ochrona własności intelektualnej",1,null,null,null,1]
["2.","Podstawy przedsiębiorczości",1,null,null,null,1]
["3.","Komunikacja społeczna",1,null,null,null,1]
["4.","Automatyzacja procesów przemysłowych",2,null,2,2,9]
["5.","Panele i interfejsy komunikacyjne",null,null,null,1,1]
["6.","Seminarium dyplomowe",null,null,null,1,2]
["7.","Przygotowanie i złożenie pracy dyplomowej oraz przygotowanie do egzaminu dyplomowego",null,null,null,null,15]
[null,"suma",{"$f":"SUM(C83:C89)","v":5},{"$f":"SUM(D83:D89)","v":0},{"$f":"SUM(E83:E89)","v":2},{"$f":"SUM(F83:F89)","v":4},{"$f":"SUM(G83:G89)","v":30}]
[null,null,{"$f":"SUM(C90:F90)","v":11}]
["Lp.","SEMESTR V sp. 2","w","ćw","l","p","ECTS"]
["1.","Język obcy (3)",null,null,2,null,1]
["2.","Mechatronika w systemach technicznych",1,null,null,2,4]
["3.","Sztuczna inteligencja",2,null,null,null,2]
["4.","Podstawy konstrukcji urządzeń specjalnych",2,null,null,2,6]
["5.","Teoria ruchu pojazdów",2,2,null,null,6]
["6.","Elektrotechnika i elektronika samochodowa",2,2,null,null,9]
["7.","Diagnozowanie układów mechatronicznych pokładowych",2,null,null,null,2]
[null,null,{"$f":"SUM(C93:C99)","v":11},{"$f":"SUM(D93:D99)","v":4},{"$f":"SUM(E93:E99)","v":2},{"$f":"SUM(F93:F99)","v":4},{"$f":"SUM(G93:G99)","v":30}]
[null,"suma",{"$f":"SUM(C100:F100)","v":21}]
["Lp.","SEMESTR VI sp. 2","w","ćw","l","p","ECTS"]
["1.","Język obcy (3)",null,null,2,null,2]
["2.","Języki programowania",2,null,2,null,7]
["3.","Elektrotechnika i elektronika samochodowa",null,null,2,1,4]
["4.","Nowoczesne źródła napędu",1,null,1,1,7]
["5.","Diagnozowanie układów mechatronicznych pokładowych",null,null,2,2,3]
["6.","Budowa pojazdów",1,null,null,null,5]
["7.","Seminarium dyplomowe",null,null,null,1,2]
[null,null,{"$f":"SUM(C103:C109)","v":4},{"$f":"SUM(D103:D109)","v":0},{"$f":"SUM(E103:E109)","v":9},{"$f":"SUM(F103:F109)","v":5},{"$f":"SUM(G103:G109)","v":30}]
[null,"suma",{"$f":"SUM(C110:F110)","v":18}]
["Lp.","SEMESTR VII sp. 2","w","ćw","l","p","ECTS"]
["1.","Ochrona własności intelektualnej",1,null,null,null,1]
["2.","Podstawy przedsiębiorczości",1,null,null,null,1]
["3.","Komunikacja społeczna",1,null,null,null,1]
["4.","Mechatroniczne układy sterowania napędem",1,1,2,2,9]
["5.","Budowa pojazdów",null,null,null,1,1]
["6.","Seminarium dyplomowe",null,null,null,1,2]
["7.","Przygotowanie i złożenie pracy dyplomowej oraz przygotowanie do egzaminu dyplomowego",null,null,null,null,15]
[null,"suma",{"$f":"SUM(C113:C119)","v":4},{"$f":"SUM(D113:D119)","v":1},{"$f":"SUM(E113:E119)","v":2},{"$f":"SUM(F113:F119)","v":4},{"$f":"SUM(G113:G119)","v":30}]
[null,null,{"$f":"SUM(C120:F120)","v":11}]

{"sheet":"SP analiza","index":2,"n_rows":51,"n_cols":10,"rows_kept":51,"cut":false,"hidden":false,"merged":[[48,1,48,4],[48,5,48,8],[49,5,49,8],[50,5,50,8],[5,1,6,3],[7,1,7,3],[8,1,8,3],[9,1,9,3],[9,4,9,9],[10,1,10,3],[10,4,10,9],[20,1,20,4],[11,1,11,3],[11,5,11,8],[12,1,12,9],[13,1,14,4],[4,1,4,3],[4,4,4,9],[0,0,0,9],[1,0,1,9],[2,1,2,9],[3,1,3,3],[3,4,3,9],[13,5,13,6],[13,7,14,7],[13,8,13,9],[15,1,15,4],[16,2,16,4],[17,2,17,4],[18,2,18,4],[19,1,19,4],[35,1,35,9],[21,1,21,4],[22,1,22,4],[23,1,23,4],[24,1,24,4],[25,1,25,9],[26,1,26,4],[29,1,29,4],[30,1,30,9],[31,1,31,4],[32,1,32,9],[33,1,33,4],[46,1,46,4],[46,5,46,9],[47,1,47,4],[36,1,36,7],[36,8,36,9],[37,1,37,7],[37,8,37,9],[45,1,45,4],[45,5,45,9]]}
["ANALIZA ZGODNOŚCI  PLANU STUDIÓW "]
["Z WYTYCZNYMI  DO PROJEKTOWANIA I MODYFIKACJI PROGRAMÓW STUDIÓW W UTP"]
[]
[null,"Jednostka prowadząca kierunek studiów",null,null,"Wydział Inżynierii Mechanicznej"]
[null,"Nazwa kierunku studiów",null,null,"Mechatronika"]
[null,"Specjalność",null,null,"1. Programowanie sterowników"]
[null,null,null,null,"2. Mechatronika w pojazdach samochodowych"]
[null,"Rok akademicki, \nod którego obowiązuje plan studiów",null,null,"2018/2019"]
[null,"Numer planu studiów",null,null,"I"]
[null,"Forma studiów",null,null,"studia stacjonarne"]
[null,"Poziom studiów",null,null,"studia pierwszego stopnia (3,5-letnie inżynierskie)"]
[null,"OGÓLNA LICZBA GODZIN ",null,null,2295,"OGÓLNA LICZBA PKT. ECTS",null,null,null,210]
[null,"B I L A N S   G O D Z I N   I   P U N K T Ó W   E C T S 1 "]
[null,"Przedmiot/moduł",null,null,null,"Godziny",null,"Pozycje planu","Punkty ECTS"]
[null,null,null,null,null,"Liczba ","%",null,"Liczba ","%"]
[null,"Zajęcia z obszaru nauk humanistycznych i nauk społecznych łącznie: ",null,null,null,{"$f":"SUM(F17:F19)","v":105},{"$f":"SUM(G17:G19)","v":4.5751633986928109E-2},null,{"$f":"SUM(I17:I19)","v":7},{"$f":"SUM(J17:J19)","v":3.3333333333333333E-2}]
[null,"1.","w tym w zakresie ochrony własności intelektualnej i/lub bezpieczeństwa i higieny pracy 2",null,null,30,{"$f":"F17/E12","v":1.3071895424836602E-2},"A.1;A.3",2,{"$f":"I17/J12","v":9.5238095238095247E-3}]
[null,"2.","w tym w zakresie podstaw przedsiębiorczości i uzyskiwania  tzw. kompetencji miękkich  2",null,null,30,{"$f":"F18/E12","v":1.3071895424836602E-2},"A.4; A.5",2,{"$f":"I18/J12","v":9.5238095238095247E-3}]
[null,"3.","w tym inne zajęcia z zakresu nauk humanistycznych i nauk społecznych, nieujęte w pkt 1 i 2",null,null,45,{"$f":"F19/E12","v":1.9607843137254902E-2},"A.6",3,{"$f":"I19/J12","v":1.4285714285714285E-2}]
[null,"Zajęcia z języków obcych ",null,null,null,120,{"$f":"F20/E12","v":5.2287581699346407E-2},"A.2",5,{"$f":"I20/J12","v":2.3809523809523808E-2}]
[null,"Zajęcia z wychowania fizycznego",null,null,null,60,{"$f":"F21/E12","v":2.6143790849673203E-2},"A.8","x","x"]
[null,"Zajęcia z technologii informacyjnych  2",null,null,null,30,{"$f":"F22/E12","v":1.3071895424836602E-2},"A.7",3,{"$f":"I22/J12","v":1.4285714285714285E-2}]
[null,"Seminarium dyplomowe",null,null,null,30,{"$f":"F23/E12","v":1.3071895424836602E-2},"D1.6; D2.7",4,{"$f":"I23/J12","v":1.9047619047619049E-2}]
[null,"Praktyka zawodowa 3",null,null,null,160,"x","C.20",4,{"$f":"I24/J12","v":1.9047619047619049E-2}]
[null,"Przygotowanie i złożenie pracy dyplomowej oraz przygotowanie do egzaminu dyplomowego ",null,null,null,"x","x","C.21",15,{"$f":"I25/J12","v":7.1428571428571425E-2}]
[]
[null,"Zajęcia do wyboru (co najmniej 30% ECTS)",null,null,null,835,{"$f":"F27/E12","v":0.36383442265795207},"A.2; A.6; A.8; C.20; C.21; D1; D2  ",77,{"$f":"I27/J12","v":0.36666666666666664}]
[]
[]
[null,"Zajęcia wymagające bezpośredniego udziału nauczyciela akademickiego ",null,null,null,"x","x",null,195,{"$f":"I30/J12","v":0.9285714285714286}]
[]
[null,"Zajęcia powiązane z prowadzonymi badaniami naukowymi w dziedzeninie nauki / sztuki związanej z kierunkiem studiów służące zdobywaniu pogłębionej wiedzy i umiejętności prowadzenia badań naukowych (ponad 50% ogólnej liczby pkt. ECTS) 4 ",null,null,null,1230,{"$f":"F32/E12","v":0.53594771241830064},null,112,{"$f":"I32/J12","v":0.53333333333333333}]
[]
[null,"Zajęcia powiązane z praktycznym przygotowaniem zawodowym służące zdobywaniu umiejętności praktycznych i kompetencji społecznych,  prowadzone w warunkach właściwych dla danego zakresu działalności zawodowej, w sposób umożliwiający wykonywanie określonych czynności praktycznych i przez osoby, z których większość posiada doświadczenie zawodowe zdobyte poza uczelnią odpowiadające zakresowi tych zajęć \n(ponad 50% ogólnej liczby pkt. ECTS) 5",null,null,null,"x","x",null,"x","x"]
[]
[null,"Procentowy udział liczby punktów ECTS dla obszarów kształcenia w programie studiów \ndla kierunków przyporządkowanych do więcej niż jednego obszaru kształcenia "]
[null,"1. obszar kształcenia w zakresie nauk technicznych",null,null,null,null,null,null,1]
[null,"ŁĄCZNIE: ",null,null,null,null,null,null,"100% pkt. ECTS"]
[]
[]
[]
[]
[]
[]
[null,"1 w ogólnej liczbie godzin i punktów ECTS przewidzianych w planie studiów"]
[null,"2  niewymagane dla studiów II stopnia",null,null,null,"……………………………………………"]
[null,"3 niewymagane na studiach II stopnia o profilu ogólnoakademickim ",null,null,null,"pieczątka i podpis kierownika samodzielnej jednostki"]
[null,"4dotyczy jedynie studiów o profilu ogólnoakademickim, wymagana realizacja zajęć powiązanych z prowadzonymi badaniami  naukowymi w dziedzinie wyszczególnionej w opisie efektów kształcenia w wymiarze ponad 50% ogólnej liczby pkt. ECTS (wymagane dostosowanie programów prowadzonych kierunków/ poziomów studiów zgodnie z terminem określonym w pkt VII.5 wytycznych Senatu)"]
[null,"5dotyczy jedynie studiów o profilu praktycznym, wymagana realizacja zajęć powiązanych z praktycznym przygotowaniem zawodowym w wymiarze ponad 50% ogólnej liczby pkt. ECTS (wymagane dostosowanie programów prowadzonych kierunków /poziomów studiów zgodnie z terminem określonym w pkt VII.5 wytycznych Senatu)",null,null,null,"ZATWIERDZAM"]
[null,null,null,null,null,"………………………………………………………"]
[null,null,null,null,null,"Prorektor ds. Dydaktycznych i Studenckich"]